bitfinex/quotes_BTCUSD_20241022
["timestamp","ask_amount","ask_price","bid_price","bid_amount"]
[1729619577999,0.005,67265.0,67264.0,0.00095117]
[1729619578400,0.0119158,67265.0,67264.0,0.00095117]
[1729619579022,0.0119158,67265.0,67264.0,0.00177717]
[1729619579725,0.0119158,67265.0,67264.0,0.00277717]
[1729619580540,0.04970185,67265.0,67264.0,0.15144417]
[1729619581707,0.04970185,67265.0,67264.0,0.00277717]
[1729619583117,0.04970185,67265.0,67264.0,0.15144417]
[1729619583544,0.04970185,67265.0,67264.0,0.55606123]
[1729619583545,0.2069158,67265.0,67264.0,0.55606123]
[1729619583758,0.2069158,67265.0,67264.0,0.59306536]
[1729619583980,0.2,67265.0,67264.0,0.55606123]
[1729619585322,0.2,67265.0,67264.0,0.55506123]
[1729619585544,0.2,67265.0,67264.0,0.66006123]
[1729619585761,0.22266425,67278.0,67277.0,0.40474808]
[1729619585998,0.22266425,67278.0,67277.0,0.55370723]
[1729619586246,0.22266425,67285.0,67277.0,0.55370723]
[1729619586247,0.22266425,67285.0,67284.0,0.14957417]
[1729619586469,0.22266425,67285.0,67284.0,0.47139123]
[1729619586688,0.005,67298.0,67292.0,0.148606]
[1729619586921,0.23540342,67293.0,67292.0,0.14955717]
[1729619587161,0.01273917,67293.0,67292.0,0.14955717]
[1729619587402,0.005,67298.0,67294.0,0.29815117]
[1729619587619,0.005,67298.0,67296.0,0.148596]
[1729619587829,0.01276672,67297.0,67296.0,0.148596]
[1729619589118,0.01276672,67297.0,67294.0,0.29815117]
[1729619589531,0.01476672,67297.0,67294.0,0.00095117]
[1729619589743,0.01476672,67297.0,67295.0,0.148598]
[1729619589952,0.01276672,67297.0,67295.0,0.148598]
[1729619590162,0.01476672,67297.0,67295.0,0.148598]
[1729619590370,0.01476672,67297.0,67296.0,0.148597]
[1729619590806,0.01476672,67297.0,67296.0,0.000826]
[1729619591023,0.01476672,67297.0,67296.0,0.149423]
[1729619591668,0.01376672,67297.0,67296.0,0.149423]
[1729619591869,0.01476672,67297.0,67296.0,0.149423]
[1729619592528,0.01376672,67297.0,67296.0,0.149423]
[1729619592743,0.01576672,67297.0,67296.0,0.149423]
[1729619596321,0.01576672,67297.0,67296.0,0.000826]
[1729619596872,0.01576672,67297.0,67296.0,0.149423]
[1729619598194,0.01576672,67297.0,67296.0,0.000826]
[1729619598391,0.05052199,67297.0,67296.0,0.000826]
[1729619598663,0.05052199,67297.0,67296.0,0.149423]
[1729619599096,0.01576672,67297.0,67296.0,0.149423]
[1729619601386,0.01576672,67297.0,67296.0,0.000826]
[1729619602222,0.01741872,67297.0,67296.0,0.000826]
[1729619605829,0.01741872,67297.0,67296.0,0.31927384]
[1729619606063,0.004652,67297.0,67296.0,0.32022501]
[1729619606950,0.003652,67297.0,67296.0,0.32022501]
[1729619607173,0.001652,67297.0,67296.0,0.32022501]
[1729619607389,0.001652,67297.0,67296.0,0.32122501]
[1729619608258,0.001652,67297.0,67296.0,0.32222501]
[1729619609172,0.001652,67297.0,67296.0,0.15237417]
[1729619610502,0.001652,67297.0,67296.0,0.15137417]
[1729619611361,0.001652,67297.0,67296.0,0.15237417]
[1729619611774,0.001652,67297.0,67296.0,0.15137417]
[1729619612016,0.001652,67297.0,67296.0,0.15237417]
[1729619612232,0.001652,67297.0,67296.0,0.15137417]
[1729619612700,0.001652,67297.0,67296.0,0.15237417]
[1729619613965,0.001652,67297.0,67296.0,0.15137417]
[1729619614986,0.001652,67297.0,67296.0,0.15037417]
[1729619615192,0.001652,67297.0,67296.0,0.15237417]
[1729619617682,0.00147307,67297.0,67296.0,0.15237417]
[1729619630411,0.00147307,67297.0,67296.0,0.32199219]
[1729619631937,0.00147307,67297.0,67296.0,0.47095134]
[1729619632202,0.00147307,67297.0,67296.0,0.47395841]
[1729619632499,0.00147307,67297.0,67296.0,0.15237417]
[1729619632762,0.00147307,67297.0,67296.0,0.151423]
[1729619632763,0.01917038,67297.0,67296.0,0.151423]
[1729619633021,0.00147307,67297.0,67296.0,0.15137417]
[1729619633285,0.01087208,67297.0,67296.0,0.15137417]
[1729619633485,0.00147307,67297.0,67296.0,0.15237417]
[1729619633694,0.00147307,67297.0,67296.0,0.15137417]
[1729619633897,0.00147307,67297.0,67296.0,0.15037417]
[1729619634106,0.00147307,67297.0,67296.0,0.15137417]
[1729619634310,0.00147307,67297.0,67296.0,0.15237417]
[1729619634516,0.00147307,67297.0,67296.0,0.15137417]
[1729619634969,0.00147307,67297.0,67296.0,0.15237417]
[1729619635189,0.09737307,67297.0,67296.0,0.002826]
[1729619635404,0.10237307,67297.0,67296.0,0.002826]
[1729619635616,0.1117513,67297.0,67296.0,0.002826]
[1729619636257,0.1117513,67297.0,67296.0,0.00277717]
[1729619636465,0.1117513,67297.0,67296.0,0.00377717]
[1729619636876,0.1660354,67297.0,67296.0,0.00377717]
[1729619637332,0.1660354,67297.0,67296.0,0.00277717]
[1729619637752,0.1660354,67297.0,67296.0,0.00377717]
[1729619638465,0.1660354,67297.0,67296.0,0.002826]
[1729619638670,0.1660354,67297.0,67296.0,0.00377717]
[1729619638881,0.1660354,67297.0,67296.0,0.15237417]
[1729619639976,0.1117513,67297.0,67296.0,0.15237417]
[1729619642784,0.1117513,67297.0,67296.0,0.002826]
[1729619643899,0.17852555,67297.0,67296.0,0.151423]
[1729619644108,0.1117513,67297.0,67296.0,0.15237417]
[1729619644296,0.20237599,67297.0,67296.0,0.00377717]
[1729619644544,0.22463038,67297.0,67296.0,0.002826]
[1729619644791,0.6421007,67297.0,67296.0,0.002826]
[1729619645002,0.5907891,67297.0,67296.0,0.001826]
[1729619645226,0.35149868,67297.0,67296.0,0.001826]
[1729619645469,0.44053759,67297.0,67296.0,0.001826]
[1729619645705,3.44053759,67297.0,67296.0,0.001826]
[1729619645942,3.44253759,67297.0,67296.0,0.001826]
[1729619646373,3.44253759,67297.0,67296.0,0.000826]
[1729619646580,3.1891513,67297.0,67296.0,0.000826]
[1729619646792,3.33811045,67297.0,67296.0,0.000826]
[1729619647007,3.50772847,67297.0,67296.0,0.000826]
[1729619647216,3.90870784,67297.0,67296.0,0.000826]
[1729619647449,3.8196668,67297.0,67296.0,0.000826]
[1729619647686,3.8206668,67297.0,67296.0,0.000826]
[1729619647877,3.8196668,67297.0,67296.0,0.000826]
[1729619648226,3.8186668,67297.0,67296.0,0.000826]
[1729619648417,3.65432347,67297.0,67296.0,0.000826]
[1729619648647,3.65832347,67297.0,67296.0,0.000826]
[1729619649054,3.65632347,67297.0,67296.0,0.000826]
[1729619649266,3.65932347,67297.0,67296.0,0.000826]
[1729619649466,3.65732347,67297.0,67296.0,0.000826]
[1729619649923,3.65432347,67297.0,67296.0,0.000826]
[1729619650258,3.66032347,67297.0,67296.0,0.000826]
[1729619651067,3.66432347,67297.0,67296.0,0.000826]
[1729619651288,3.66032347,67297.0,67296.0,0.000826]
[1729619651682,3.51872847,67297.0,67296.0,0.000826]
[1729619652112,3.36976932,67297.0,67296.0,0.000826]
[1729619652323,3.2001513,67297.0,67296.0,0.000826]
[1729619653656,3.45351535,67297.0,67296.0,0.000826]
[1729619654060,3.36448315,67297.0,67296.0,0.000826]
[1729619654275,3.36447678,67297.0,67296.0,0.000826]
[1729619654470,3.45350815,67297.0,67296.0,0.000826]
[1729619654872,3.47576599,67297.0,67296.0,0.000826]
[1729619656308,3.36447678,67297.0,67296.0,0.000826]
[1729619659264,3.45347677,67297.0,67296.0,0.000826]
[1729619659830,3.06834658,67297.0,67296.0,0.149423]
[1729619660039,3.0238513,67297.0,67296.0,0.149423]
[1729619660868,3.0178513,67297.0,67296.0,0.149423]
[1729619661304,3.0108513,67297.0,67296.0,0.150423]
[1729619661514,3.0108513,67297.0,67296.0,0.151423]
[1729619670251,3.0108513,67297.0,67296.0,0.49512643]
[1729619670466,3.0108513,67297.0,67296.0,0.38654039]
[1729619670677,3.00147307,67297.0,67296.0,0.38654039]
[1729619670893,3.01082329,67297.0,67296.0,0.38654039]
[1729619671113,3.01082329,67297.0,67296.0,0.38554039]
[1729619671775,3.01082329,67297.0,67296.0,0.38654039]
[1729619672412,3.01082329,67297.0,67296.0,0.30434039]
[1729619674502,3.01082329,67297.0,67296.0,0.30234039]
[1729619674924,3.01082329,67297.0,67296.0,0.30334039]
[1729619675127,3.01082329,67297.0,67296.0,0.30234039]
[1729619675565,3.01082329,67297.0,67296.0,0.30334039]
[1729619676185,3.01082329,67297.0,67296.0,0.30234039]
[1729619676405,3.01082329,67297.0,67296.0,0.29933332]
[1729619676603,3.01082329,67297.0,67296.0,0.30334039]
[1729619677028,3.01082329,67297.0,67296.0,0.30434039]
[1729619678249,3.01082329,67297.0,67296.0,0.30334039]
[1729619679038,3.01082329,67297.0,67296.0,0.30434039]
[1729619684139,3.01082329,67297.0,67296.0,0.30434039]
[1729619686052,3.01082329,67297.0,67296.0,0.15237417]
[1729619686260,3.01082329,67297.0,67296.0,0.26096021]
[1729619692091,3.01082329,67297.0,67296.0,0.25905636]
[1729619694800,3.01082329,67297.0,67296.0,0.25988236]
[1729619698079,2.96082329,67297.0,67296.0,0.25988236]
[1729619704871,2.96082329,67297.0,67296.0,0.15129632]
[1729619706499,2.96247529,67297.0,67296.0,0.15129632]
[1729619717719,2.96247529,67297.0,67296.0,0.25988236]
[1729619718185,2.96247529,67297.0,67296.0,0.41184858]
[1729619720161,2.96247529,67297.0,67296.0,0.30326254]
[1729619722298,3.13837529,67297.0,67296.0,0.15129632]
[1729619728167,3.13837529,67297.0,67296.0,0.15029632]
[1729619728581,3.13837529,67297.0,67296.0,0.15129632]
[1729619728737,3.13558292,67297.0,67296.0,0.15129632]
[1729619730765,3.90626936,67297.0,67296.0,0.002826]
[1729619730996,3.79480859,67297.0,67296.0,0.002826]
[1729619731427,3.53762755,67297.0,67296.0,0.002826]
[1729619731631,3.68622255,67297.0,67296.0,0.000826]
[1729619731845,3.41156563,67297.0,67296.0,0.001826]
[1729619732056,3.13558292,67297.0,67296.0,0.15237417]
[1729619732415,3.13558292,67297.0,67296.0,0.15137417]
[1729619732870,3.13958292,67297.0,67296.0,0.15137417]
[1729619733312,3.13558292,67297.0,67296.0,0.15037417]
[1729619733554,3.14058292,67297.0,67296.0,0.15037417]
[1729619733801,3.13558292,67297.0,67296.0,0.15037417]
[1729619734250,3.12902507,67297.0,67296.0,0.15137417]
[1729619734467,3.12902507,67297.0,67296.0,0.15037417]
[1729619734687,3.12902507,67297.0,67296.0,0.15137417]
[1729619734912,3.12902507,67297.0,67296.0,0.15237417]
[1729619735166,3.12902507,67297.0,67296.0,0.15137417]
[1729619735383,3.12902507,67297.0,67296.0,0.15237417]
[1729619739038,3.12902507,67297.0,67296.0,0.15237417]
[1729619739477,3.04662507,67297.0,67296.0,0.15237417]
[1729619743306,2.99662507,67297.0,67296.0,0.15237417]
[1729619747378,2.99662507,67297.0,67296.0,0.30133332]
[1729619747627,2.99662507,67297.0,67296.0,0.30434039]
[1729619747628,2.90312507,67297.0,67296.0,0.30434039]
[1729619747856,2.90312507,67297.0,67296.0,0.75099856]
[1729619748074,2.90312507,67297.0,67296.0,0.77222719]
[1729619748283,2.90312507,67297.0,67296.0,0.79442739]
[1729619748545,2.90312507,67297.0,67296.0,0.68242643]
[1729619749442,2.90312507,67297.0,67296.0,0.77105437]
[1729619749652,2.90312507,67297.0,67296.0,0.68142643]
[1729619749864,2.90312507,67297.0,67296.0,0.68342643]
[1729619750079,2.90312507,67297.0,67296.0,0.68242643]
[1729619750295,2.90312507,67297.0,67296.0,0.77101408]
[1729619750771,2.90312507,67297.0,67296.0,0.68342643]
[1729619750991,2.90312507,67297.0,67296.0,0.77201408]
[1729619751218,2.90312507,67297.0,67296.0,0.68342643]
[1729619752346,2.90312507,67297.0,67296.0,0.7498279]
[1729619753046,2.90312507,67297.0,67296.0,0.68342643]
[1729619753491,2.90312507,67297.0,67296.0,0.77201408]
[1729619754197,2.90312507,67297.0,67296.0,0.74979773]
[1729619754420,2.90312507,67297.0,67296.0,0.68342643]
[1729619754643,2.90312507,67297.0,67296.0,0.74979746]
[1729619755298,2.90312507,67297.0,67296.0,0.68342643]
[1729619756366,2.90312507,67297.0,67296.0,0.72766102]
[1729619758268,2.90312507,67297.0,67296.0,0.68342643]
[1729619764497,2.90312507,67297.0,67296.0,0.49954039]
[1729619764699,2.90312507,67297.0,67296.0,0.71671247]
[1729619766100,2.90312507,67297.0,67296.0,0.63851247]
[1729619768012,2.90312507,67297.0,67296.0,0.41434039]
[1729619768271,2.90312507,67297.0,67296.0,0.52292643]
[1729619768495,2.90312507,67297.0,67296.0,0.51792643]
[1729619769161,2.90312507,67297.0,67296.0,0.51692643]
[1729619769382,2.90312507,67297.0,67296.0,0.51792643]
[1729619769847,2.90312507,67297.0,67296.0,0.51692643]
[1729619770470,2.90312507,67297.0,67296.0,0.51892643]
[1729619770686,2.90312507,67297.0,67296.0,0.51992643]
[1729619771148,2.90312507,67297.0,67296.0,0.51892643]
[1729619771363,2.90312507,67297.0,67296.0,0.51792643]
[1729619774980,2.90312507,67297.0,67296.0,0.51992643]
[1729619775189,2.90312507,67297.0,67296.0,0.62851247]
[1729619778289,2.90312507,67297.0,67296.0,0.62651247]
[1729619778496,2.90312507,67297.0,67296.0,0.51792643]
[1729619780253,2.90312507,67297.0,67296.0,0.62651247]
[1729619780634,2.90312507,67297.0,67296.0,0.51792643]
[1729619780996,2.90312507,67297.0,67296.0,0.62651247]
[1729619782954,2.90312507,67297.0,67296.0,0.62851247]
[1729619783210,2.90312507,67297.0,67296.0,0.62651247]
[1729619783718,2.90312507,67297.0,67296.0,0.51792643]
[1729619783926,2.90312507,67297.0,67296.0,0.40934039]
[1729619784130,2.90312507,67297.0,67296.0,0.51792643]
[1729619786157,2.98592507,67297.0,67296.0,0.51792643]
[1729619787025,3.07882507,67297.0,67296.0,0.40038215]
[1729619787245,3.07882507,67297.0,67296.0,0.40934039]
[1729619788299,3.07882507,67297.0,67296.0,0.40834039]
[1729619788712,3.07882507,67297.0,67296.0,0.40934039]
[1729619788929,3.07882507,67297.0,67296.0,0.40834039]
[1729619789377,3.07882507,67297.0,67296.0,0.40934039]
[1729619790263,3.07882507,67297.0,67296.0,0.40434039]
[1729619790878,3.07882507,67297.0,67296.0,0.40934039]
[1729619791092,3.07882507,67297.0,67296.0,0.40834039]
[1729619791325,3.07882507,67297.0,67296.0,0.40934039]
[1729619791540,3.07882507,67297.0,67296.0,0.40834039]
[1729619791777,3.07882507,67297.0,67296.0,0.51692643]
[1729619791987,3.07882507,67297.0,67296.0,0.51792643]
[1729619792410,3.07882507,67297.0,67296.0,0.51692643]
[1729619792867,3.07882507,67297.0,67296.0,0.51792643]
[1729619793504,3.07882507,67297.0,67296.0,0.51292643]
[1729619793714,3.07882507,67297.0,67296.0,0.51792643]
[1729619811718,3.07882507,67297.0,67296.0,0.40934039]
[1729619811923,3.07882507,67297.0,67296.0,0.51792643]
[1729619812598,3.07882507,67297.0,67296.0,0.51292643]
[1729619812817,3.07882507,67297.0,67296.0,0.51792643]
[1729619818995,3.07882507,67297.0,67296.0,0.50896819]
[1729619819212,3.07882507,67297.0,67296.0,0.40038215]
[1729619819431,3.07882507,67297.0,67296.0,0.30434039]
[1729619819636,3.07882507,67297.0,67296.0,0.15538124]
[1729619820695,3.07882507,67297.0,67296.0,0.15438124]
[1729619821119,3.07882507,67297.0,67296.0,0.15538124]
[1729619821532,3.07882507,67297.0,67296.0,0.15438124]
[1729619821917,3.07882507,67297.0,67296.0,0.15338124]
[1729619822150,3.07882507,67297.0,67296.0,0.15438124]
[1729619822361,3.07882507,67297.0,67296.0,0.15538124]
[1729619822564,3.07882507,67297.0,67296.0,0.15438124]
[1729619822770,3.07882507,67297.0,67296.0,0.15538124]
[1729619824235,3.07882507,67297.0,67296.0,0.15438124]
[1729619824877,3.07882507,67297.0,67296.0,0.15338124]
[1729619825086,3.07882507,67297.0,67296.0,0.15438124]
[1729619825298,3.07882507,67297.0,67296.0,0.15538124]
[1729619830371,2.99602507,67297.0,67296.0,0.30434039]
[1729619831009,2.90312507,67297.0,67296.0,0.30434039]
[1729619831668,2.90312507,67297.0,67296.0,0.51792643]
[1729619831900,2.90312507,67297.0,67296.0,0.57426496]
[1729619832117,2.90312507,67297.0,67296.0,0.68622643]
[1729619832118,2.75453007,67297.0,67296.0,0.68622643]
[1729619832590,2.75453007,67297.0,67296.0,0.68522643]
[1729619832823,2.14979049,67297.0,67296.0,0.70822643]
[1729619833037,2.14979049,67297.0,67296.0,0.70922643]
[1729619833248,2.14979049,67297.0,67296.0,0.77568085]
[1729619833486,2.14979049,67297.0,67296.0,0.70922643]
[1729619833919,2.00119549,67297.0,67296.0,0.70822643]
[1729619834361,2.00119549,67297.0,67296.0,0.70922643]
[1729619834577,2.00119549,67297.0,67296.0,0.77565737]
[1729619834791,1.91203849,67297.0,67296.0,0.77465637]
[1729619834997,1.91203849,67297.0,67296.0,0.77365637]
[1729619835233,1.91203849,67297.0,67296.0,0.70822643]
[1729619835439,1.91203849,67297.0,67296.0,0.70922643]
[1729619835855,1.91203849,67297.0,67296.0,0.77565637]
[1729619836289,1.91203849,67297.0,67296.0,0.70922643]
[1729619839301,1.91203849,67297.0,67296.0,0.75346718]
[1729619839710,1.91203849,67297.0,67296.0,0.67816718]
[1729619840610,1.91203849,67297.0,67296.0,0.59616718]
[1729619840817,1.91203849,67297.0,67296.0,0.55092643]
[1729619841088,1.91203849,67297.0,67296.0,0.55292643]
[1729619841337,1.91203849,67297.0,67296.0,0.55192643]
[1729619841820,1.91203849,67297.0,67296.0,0.55292643]
[1729619842754,1.91203849,67297.0,67296.0,0.59715512]
[1729619844034,1.91203849,67297.0,67296.0,0.57215512]
[1729619844290,1.91203849,67297.0,67296.0,0.52792643]
[1729619844483,1.91203849,67297.0,67296.0,0.40038215]
[1729619844690,2.01123849,67297.0,67296.0,0.51792643]
[1729619845116,2.01123849,67297.0,67296.0,0.52792643]
[1729619845529,2.01123849,67297.0,67296.0,0.51792643]
[1729619846152,2.01123849,67297.0,67296.0,0.40934039]
[1729619846359,2.01123849,67297.0,67296.0,0.51192643]
[1729619846360,2.08653849,67297.0,67296.0,0.51192643]
[1729619846561,2.08653849,67297.0,67296.0,0.51092643]
[1729619846769,2.08653849,67297.0,67296.0,0.51292643]
[1729619846976,2.08653849,67297.0,67296.0,0.51192643]
[1729619847182,2.08653849,67297.0,67296.0,0.41792643]
[1729619847640,2.08653849,67297.0,67296.0,0.41692643]
[1729619847859,2.08653849,67297.0,67296.0,0.41792643]
[1729619848503,2.08653849,67297.0,67296.0,0.51792643]
[1729619850709,2.08653849,67297.0,67296.0,0.40434039]
[1729619851590,2.08653849,67297.0,67296.0,0.40038215]
[1729619851810,2.08653849,67297.0,67296.0,0.40434039]
[1729619852449,2.08653849,67297.0,67296.0,0.40038215]
[1729619853999,2.08653849,67297.0,67296.0,0.40434039]
[1729619859245,2.08653849,67297.0,67296.0,0.15237417]
[1729619859411,2.19512453,67297.0,67296.0,0.15237417]
[1729619859615,2.08653849,67297.0,67296.0,0.15237417]
[1729619860107,2.08653849,67297.0,67296.0,0.15037417]
[1729619860334,2.08653849,67297.0,67296.0,0.15237417]
[1729619860554,2.08653849,67297.0,67296.0,0.15137417]
[1729619860758,2.08653849,67297.0,67296.0,0.15037417]
[1729619860973,2.08653849,67297.0,67296.0,0.15137417]
[1729619862238,2.08653849,67297.0,67296.0,0.15237417]
[1729619863011,2.08653849,67297.0,67296.0,0.15137417]
[1729619863221,2.08653849,67297.0,67296.0,0.15037417]
[1729619863420,2.08653849,67297.0,67296.0,0.15237417]
[1729619897405,2.08653849,67297.0,67296.0,0.41292643]
[1729619897406,1.91203849,67297.0,67296.0,0.41292643]
[1729619897632,1.91203849,67297.0,67296.0,0.51792643]
[1729619898291,1.91203849,67297.0,67296.0,0.51692643]
[1729619898531,1.91203849,67297.0,67296.0,0.51592643]
[1729619898787,1.91203849,67297.0,67296.0,0.51792643]
[1729619899016,1.91203849,67297.0,67296.0,0.51692643]
[1729619899494,1.91203849,67297.0,67296.0,0.51792643]
[1729619905927,1.91203849,67297.0,67296.0,0.40934039]
[1729619906179,2.00963849,67297.0,67296.0,0.51792643]
[1729619907820,1.91203849,67297.0,67296.0,0.51792643]
[1729619908967,1.91203849,67297.0,67296.0,0.51292643]
[1729619909201,1.91203849,67297.0,67296.0,0.51792643]
[1729619911621,1.91203849,67297.0,67296.0,0.51292643]
[1729619911866,1.91203849,67297.0,67296.0,0.51792643]
[1729619913058,1.91203849,67297.0,67296.0,0.51292643]
[1729619921907,1.91203849,67297.0,67296.0,0.63851247]
[1729619922134,1.40724019,67297.0,67296.0,0.74709851]
[1729619922379,1.40724019,67297.0,67296.0,0.94197915]
[1729619922596,1.40724019,67297.0,67296.0,0.94097915]
[1729619922810,1.40724019,67297.0,67296.0,0.94096858]
[1729619923037,1.40724019,67297.0,67296.0,0.83338254]
[1729619923270,1.40724019,67297.0,67296.0,0.83138254]
[1729619923469,1.40724019,67297.0,67296.0,0.78911247]
[1729619924002,1.25864519,67297.0,67296.0,0.91969851]
[1729619924176,1.22422519,67297.0,67296.0,1.00823865]
[1729619924429,1.22422519,67297.0,67296.0,0.92069851]
[1729619924674,0.73836161,67297.0,67296.0,0.92069851]
[1729619924916,0.61948561,67297.0,67296.0,0.92069851]
[1729619925140,0.61948561,67297.0,67296.0,0.91969851]
[1729619925369,0.61948561,67297.0,67296.0,0.91869851]
[1729619925598,0.61948561,67297.0,67296.0,0.91969851]
[1729619925864,0.53032861,67297.0,67296.0,0.91969851]
[1729619926304,0.43016666,67297.0,67296.0,0.98700434]
[1729619926792,3.0,67299.0,67298.0,0.29635824]
[1729619926793,1.659581,67299.0,67298.0,0.29635824]
[1729619927019,1.33563411,67299.0,67298.0,0.2958884]
[1729619927243,1.32266863,67299.0,67298.0,0.2958884]
[1729619927460,1.32266863,67299.0,67298.0,0.29291739]
[1729619927726,1.04911002,67299.0,67298.0,0.29291739]
[1729619927950,1.04911002,67299.0,67298.0,0.40438303]
[1729619928393,1.02011002,67299.0,67298.0,0.29391739]
[1729619929043,0.99111002,67299.0,67298.0,0.29391739]
[1729619929268,0.99111002,67299.0,67298.0,0.29291739]
[1729619929729,0.99111002,67299.0,67298.0,0.29391739]
[1729619929953,0.65993405,67299.0,67298.0,0.41950939]
[1729619930172,0.65993405,67299.0,67298.0,0.41850939]
[1729619930680,0.35665744,67299.0,67298.0,0.41950939]
[1729619930897,0.29722144,67299.0,67298.0,0.41850939]
[1729619931121,0.23778544,67299.0,67298.0,0.52709543]
[1729619931337,0.23778544,67299.0,67298.0,0.55109543]
[1729619931773,0.08919544,67299.0,67298.0,0.54609543]
[1729619932231,0.08919544,67299.0,67298.0,0.55109543]
[1729619932443,0.22266425,67307.0,67306.0,0.19253324]
[1729619932657,0.22266425,67307.0,67306.0,0.61096175]
[1729619933089,0.093726,67312.0,67310.0,0.16952424]
[1729619933315,0.000826,67312.0,67310.0,0.41848339]
[1729619933560,0.000826,67312.0,67310.0,0.75742211]
[1729619933773,0.000826,67312.0,67310.0,0.41848339]
[1729619934644,0.000826,67312.0,67310.0,0.41948339]
[1729619935081,0.000826,67312.0,67310.0,0.41848339]
[1729619936430,0.000826,67312.0,67310.0,0.41948339]
[1729619937645,0.000826,67312.0,67310.0,0.41848339]
[1729619938070,0.000826,67312.0,67310.0,0.41748339]
[1729619938711,0.000826,67312.0,67310.0,0.41948339]
[1729619939156,0.000826,67312.0,67310.0,0.41748339]
[1729619940461,0.000826,67312.0,67310.0,0.41948339]
[1729619940703,0.000826,67312.0,67310.0,0.41748339]
[1729619942275,0.000826,67312.0,67310.0,0.41648339]
[1729619943150,0.000826,67312.0,67310.0,0.41748339]
[1729619944279,0.080652,67311.0,67310.0,0.41748339]
[1729619944751,0.178952,67311.0,67310.0,0.41748339]
[1729619947756,0.178952,67311.0,67310.0,0.41948339]
[1729619948792,0.178952,67311.0,67310.0,0.41748339]
[1729619949869,0.001652,67311.0,67310.0,0.41948339]
[1729619951665,0.001652,67311.0,67310.0,0.41748339]
[1729619952354,0.001652,67311.0,67310.0,0.52593846]
[1729619953880,0.001652,67311.0,67310.0,0.52793846]
[1729619954555,0.001652,67311.0,67310.0,0.41748339]
[1729619954830,0.175652,67311.0,67310.0,0.41248339]
[1729619955063,0.175652,67311.0,67310.0,0.40748339]
[1729619955291,0.28410707,67311.0,67310.0,0.30248339]
[1729619955506,0.28410707,67311.0,67310.0,0.30148339]
[1729619955949,0.28410707,67311.0,67310.0,0.30248339]
[1729619956443,0.175652,67311.0,67310.0,0.30148339]
[1729619956689,0.175652,67311.0,67310.0,0.30248339]
[1729619956906,0.175652,67311.0,67310.0,0.40248339]
[1729619957786,0.175652,67311.0,67310.0,0.40148339]
[1729619958224,0.175652,67311.0,67310.0,0.40248339]
[1729619958708,0.175652,67311.0,67310.0,0.40148339]
[1729619958927,0.175652,67311.0,67310.0,0.40248339]
[1729619966078,0.175652,67311.0,67310.0,0.00195117]
[1729619966386,0.34523661,67311.0,67310.0,0.00195117]
[1729619966597,0.34523661,67311.0,67310.0,0.15051717]
[1729619967906,0.175652,67311.0,67310.0,0.15051717]
[1729619968125,0.175652,67311.0,67310.0,0.14951717]
[1729619968376,0.175652,67311.0,67310.0,0.15051717]
[1729619968870,0.175652,67311.0,67310.0,0.14951717]
[1729619969114,0.175652,67311.0,67310.0,0.15051717]
[1729619979049,0.175652,67311.0,67310.0,0.14951717]
[1729619980398,0.175652,67311.0,67310.0,0.15051717]
[1729619982743,0.175652,67311.0,67310.0,0.29947632]
[1729619982928,0.175652,67311.0,67310.0,0.30248339]
[1729619983426,0.175652,67311.0,67310.0,0.41100447]
[1729619983668,0.175652,67311.0,67310.0,0.51000447]
[1729619983888,0.175652,67311.0,67310.0,0.51100447]
[1729619984318,0.175652,67311.0,67310.0,0.51000447]
[1729619984319,0.081152,67311.0,67310.0,0.51000447]
[1729619984542,0.175552,67311.0,67310.0,0.39847632]
[1729619984761,0.175552,67311.0,67310.0,0.40248339]
[1729619985201,0.175552,67311.0,67310.0,0.40148339]
[1729619997478,0.175552,67311.0,67310.0,0.40248339]
[1729619997926,0.175552,67311.0,67310.0,0.40148339]
[1729619999095,0.175552,67311.0,67310.0,0.40248339]
[1729620001213,0.3397361,67311.0,67310.0,0.148566]
[1729620001455,0.3397361,67311.0,67310.0,0.14951717]
[1729620001709,0.170152,67311.0,67310.0,0.14951717]
[1729620002669,0.170152,67311.0,67310.0,0.30248339]
[1729620003114,0.170152,67311.0,67310.0,0.30148339]
[1729620003349,0.170152,67311.0,67310.0,0.30248339]
[1729620004433,0.170152,67311.0,67310.0,0.40248339]
[1729620005552,0.170152,67311.0,67310.0,0.40148339]
[1729620005983,0.170152,67311.0,67310.0,0.40248339]
[1729620013233,0.170152,67311.0,67310.0,0.001]
[1729620014170,0.170152,67311.0,67310.0,0.149566]
[1729620014400,0.170152,67311.0,67310.0,0.29852515]
[1729620014621,0.170152,67311.0,67310.0,0.29752515]
[1729620015279,0.170152,67311.0,67310.0,0.30148339]
[1729620015501,0.170152,67311.0,67310.0,0.40998233]
[1729620015715,0.170152,67311.0,67310.0,0.30148339]
[1729620020689,0.001652,67311.0,67310.0,0.50998233]
[1729620021460,0.001652,67311.0,67310.0,0.51498233]
[1729620022136,0.001652,67311.0,67310.0,0.52498233]
[1729620025772,0.001652,67311.0,67310.0,0.41648339]
[1729620025973,0.001652,67311.0,67310.0,0.52498233]
[1729620026414,0.001652,67311.0,67310.0,0.40648339]
[1729620026621,0.093452,67311.0,67310.0,0.40148339]
[1729620032076,0.093452,67311.0,67310.0,0.40648339]
[1729620032328,0.093452,67311.0,67310.0,0.50998233]
[1729620037406,0.093452,67311.0,67310.0,0.40148339]
[1729620040554,0.170252,67311.0,67310.0,0.40148339]
[1729620060311,0.170252,67311.0,67310.0,0.44584434]
[1729620060727,0.170252,67311.0,67310.0,0.44587381]
[1729620061413,0.170252,67311.0,67310.0,0.40148339]
[1729620064889,0.170252,67311.0,67310.0,0.46806902]
[1729620065335,0.093452,67311.0,67310.0,0.46806902]
[1729620069115,0.000826,67312.0,67311.0,0.11895824]
[1729620069343,1e-06,67312.0,67311.0,0.71666441]
[1729620069547,0.30056425,67326.0,67322.0,0.25749724]
[1729620069548,0.22266425,67326.0,67322.0,0.25749724]
[1729620069761,0.22266425,67326.0,67322.0,0.63345427]
[1729620069994,0.22266425,67326.0,67322.0,0.74428443]
[1729620070229,0.22266425,67326.0,67322.0,0.74628443]
[1729620070468,0.22266425,67326.0,67322.0,0.63545427]
[1729620070678,0.22266425,67335.0,67322.0,0.63545427]
[1729620071549,0.22266425,67335.0,67322.0,0.7239993]
[1729620071998,0.22266425,67335.0,67322.0,0.7219993]
[1729620072199,0.22266425,67335.0,67322.0,0.63345427]
[1729620073088,0.22266425,67335.0,67322.0,0.63298485]
[1729620073272,0.22266425,67335.0,67322.0,0.63225595]
[1729620073419,0.22266425,67335.0,67322.0,0.69863806]
[1729620074717,0.22266425,67335.0,67322.0,0.63225595]
[1729620075967,0.22266425,67335.0,67322.0,0.63425595]
[1729620076195,0.22266425,67335.0,67322.0,0.6784793]
[1729620076392,0.22266425,67335.0,67322.0,0.63425595]
[1729620076570,0.22266425,67335.0,67322.0,0.67847077]
[1729620077810,1e-06,67323.0,67322.0,0.63425595]
[1729620078019,1e-06,67323.0,67322.0,0.41725807]